bitfinex-derivatives/quotes_SOLF0:USTF0_20250524
["timestamp","ask_amount","ask_price","bid_price","bid_amount"]
[1748110183793,8.04173777,177.11,177.08,0.0382244]
[1748110185296,0.03602131,177.11,177.08,0.0382244]
[1748110186289,0.03602131,177.11,177.09,5.6447]
[1748110186696,0.03602131,177.11,177.08,0.0382244]
[1748110187195,0.03602131,177.11,177.08,5.6831244]
[1748110188594,0.03602131,177.11,177.08,0.0382244]
[1748110189697,5.68012131,177.11,177.08,0.0382244]
[1748110189897,0.03602131,177.11,177.08,0.0382244]
[1748110190897,5.6444,177.1,177.08,0.0382244]
[1748110192801,5.68012131,177.11,177.08,0.0382244]
[1748110194500,5.6444,177.1,177.08,0.0382244]
[1748110199408,5.68022131,177.11,177.08,0.0382244]
[1748110199607,5.12430975,177.09,177.08,0.0382244]
[1748110201109,5.68022131,177.11,177.08,0.0382244]
[1748110201303,5.12430975,177.1,177.08,0.0382244]
[1748110204009,10.76890975,177.1,177.08,0.0382244]
[1748110204214,5.12430975,177.1,177.08,0.0382244]
[1748110204914,5.6447,177.09,177.08,0.0382244]
[1748110207318,5.12430975,177.1,177.08,0.0382244]
[1748110208111,5.16033106,177.11,177.08,0.0382244]
[1748110209621,5.16033106,177.11,177.09,5.6447]
[1748110211822,0.03602131,177.11,177.1,5.6444]
[1748110213720,110.88,177.12,177.11,5.644]
[1748110215423,0.03659355,177.13,177.12,5.6437]
[1748110220027,0.03659355,177.13,177.1,2.027]
[1748110220232,0.03659355,177.13,177.08,0.0382244]
[1748110221735,8.00229343,177.12,177.08,0.0382244]
[1748110221925,5.6446,177.1,177.08,0.0382244]
[1748110224430,5.6447,177.09,177.08,0.0382244]
[1748110224731,110.7,177.11,177.08,0.0382244]
[1748110224933,5.6445,177.1,177.08,0.0382244]
[1748110227032,116.3441,177.11,177.08,0.0382244]
[1748110229129,5.6445,177.1,177.08,0.0382244]
[1748110229436,110.7,177.11,177.08,0.0382244]
[1748110229639,5.6447,177.09,177.08,0.0382244]
[1748110230530,5.6444,177.1,177.08,0.0382244]
[1748110230739,110.7,177.11,177.08,0.0382244]
[1748110231738,110.7,177.11,177.08,5.6832244]
[1748110232242,110.7,177.11,177.09,5.6444]
[1748110232427,110.72,177.12,177.08,0.0382244]
[1748110232843,110.72,177.12,177.11,5.6438]
[1748110233635,0.03659355,177.13,177.12,5.6437]
[1748110261673,9.355e-05,177.13,177.12,5.6437]
[1748110261982,110.66,177.22,177.2,5.6412]
[1748110262473,110.66,177.22,177.19,5.6414]
[1748110262776,5.12029572,177.2,177.19,0.03816822]
[1748110264078,10.76159572,177.2,177.19,0.03816822]
[1748110264268,5.12029572,177.2,177.19,0.03816822]
[1748110265174,110.69667442,177.22,177.19,0.03816822]
[1748110265676,110.69667442,177.22,177.21,5.6409]
[1748110268077,110.69667442,177.22,177.2,5.6411]
[1748110269877,110.69667442,177.22,177.21,5.6409]
[1748110270376,115.81697014,177.22,177.21,5.6409]
[1748110270680,110.69667442,177.22,177.21,5.6409]
[1748110270873,0.03667442,177.22,177.21,5.6409]
[1748110271273,110.64,177.28,177.27,5.639]
[1748110271771,5.12029572,177.32,177.27,5.639]
[1748110271978,110.64,177.31,177.24,5.12029572]
[1748110272383,0.04285212,177.29,177.28,5.6387]
[1748110273479,0.04285212,177.29,177.26,5.67992902]
[1748110273679,0.04285212,177.29,177.26,0.04082902]
[1748110274277,0.04285212,177.29,177.27,5.639]
[1748110276584,0.04285212,177.29,177.26,5.68012902]
[1748110279091,0.04285212,177.29,177.27,5.6389]
[1748110280590,0.04285212,177.29,177.28,5.6387]
[1748110287297,8.88479549,177.48,177.28,743.80452332]
[1748110287489,9.15181369,177.5,177.47,7.98226166]
[1748110287689,0.19741369,177.5,177.48,110.66]
[1748110287893,2.0008,177.61,177.48,110.66]
[1748110288097,2.0008,177.61,177.5,7.98226166]
[1748110288404,0.04165064,177.56,177.52,0.04070163]
[1748110288598,0.04165064,177.56,177.53,110.66]
[1748110289491,0.04165064,177.56,177.54,5.6304]
[1748110289703,0.04165064,177.56,177.53,110.66]
[1748110290201,0.04165064,177.56,177.55,5.6301]
[1748110290699,0.04165064,177.56,177.54,5.6301]
[1748110291499,0.04165064,177.56,177.52,5.67170163]
[1748110291803,0.04165064,177.56,177.53,110.6]
[1748110292198,0.04165064,177.56,177.53,116.2305]
[1748110292600,0.04165064,177.56,177.53,110.6]
[1748110292807,0.04165064,177.56,177.52,0.04070163]
[1748110295302,0.04165064,177.56,177.53,22.73]
[1748110295702,5.6306,177.54,177.53,22.73]
[1748110296208,5.6306,177.54,177.53,13.523]
[1748110296407,5.6306,177.54,177.53,7.3855]
[1748110303418,116.1706,177.54,177.53,7.3855]
[1748110304221,5.6306,177.54,177.53,7.3855]
[1748110312330,5.6308,177.53,177.52,0.04070163]
[1748110332341,5.6308,177.53,177.52,2.39121377]
[1748110333742,5.6308,177.53,177.52,0.04070163]
[1748110341243,5.6321,177.49,177.47,7.39]
[1748110341749,5.6321,177.49,177.48,2.35746353]
[1748110348649,5.6321,177.49,177.47,7.42611356]
[1748110350352,5.6324,177.48,177.47,7.42611356]
[1748110351554,5.6324,177.48,177.47,9.78240524]
[1748110354151,5.6324,177.48,177.47,2.39240524]
[1748110370664,0.04093411,177.5,177.47,2.39240524]
[1748110370857,0.04093411,177.5,177.48,5.10022768]
[1748110371057,0.04093411,177.5,177.49,5.09863747]
[1748110371259,0.04093411,177.5,177.49,10.73063747]
[1748110372163,0.04093411,177.5,177.49,13.08692915]
[1748110375264,0.04093411,177.5,177.49,7.45492915]
[1748110375565,0.04093411,177.5,177.49,2.35629168]
[1748110381567,0.04093411,177.5,177.48,5.6323]
[1748110385670,0.04093411,177.5,177.49,5.632]
[1748110386373,0.04093411,177.5,177.48,5.6323]
[1748110387075,0.04093411,177.5,177.49,5.632]
[1748110388276,0.04093411,177.5,177.49,7.93693533]
[1748110396693,0.04093411,177.5,177.49,13.03714907]
[1748110397995,0.04093411,177.5,177.49,13.03617812]
[1748110404195,0.04093411,177.5,177.49,7.93693533]
[1748110404394,0.04093411,177.5,177.49,13.03617812]
[1748110411300,0.04093411,177.5,177.49,7.93693533]
[1748110411506,0.04093411,177.5,177.49,13.03617812]
[1748110421606,0.04093411,177.5,177.49,13.03592938]
[1748110422608,0.04093411,177.5,177.49,13.03598546]
[1748110424610,0.04093411,177.5,177.49,13.03631197]
[1748110426913,0.04093411,177.5,177.49,13.03632857]
[1748110428614,0.04093411,177.5,177.49,13.03632727]
[1748110430615,0.04093411,177.5,177.49,13.03628607]
[1748110441532,2.0328,177.58,177.57,5.6299]
[1748110441831,116.45935074,177.6,177.57,5.6299]
[1748110442022,122.08855074,177.6,177.56,5.6301]
[1748110442630,122.12512623,177.6,177.56,5.67124259]
[1748110442832,122.12512623,177.6,177.57,5.6298]
[1748110443026,116.49592623,177.6,177.57,5.6298]
[1748110444536,122.12482623,177.6,177.57,5.6298]
[1748110444734,116.49592623,177.6,177.57,5.6298]
[1748110445133,116.49592623,177.6,177.57,12.8498]
[1748110446437,116.49592623,177.6,177.58,5.6295]
[1748110446633,111.39657549,177.6,177.58,5.6295]
[1748110451038,111.39657549,177.6,177.57,7.22]
[1748110452847,111.39657549,177.6,177.57,12.8499]
[1748110454941,111.39657549,177.6,177.57,7.22]
[1748110456743,111.39657549,177.6,177.57,12.8499]
[1748110456939,111.39657549,177.6,177.57,7.22]
[1748110457947,111.39657549,177.6,177.57,5.6299]
[1748110458543,111.39657549,177.6,177.56,5.67124259]
[1748110458845,117.02557549,177.6,177.56,5.67124259]
[1748110459442,111.39657549,177.6,177.56,5.67124259]
[1748110460136,111.39657549,177.6,177.57,5.6299]
[1748110461343,111.39657549,177.6,177.57,12.8299]
[1748110461643,111.39657549,177.6,177.58,5.6295]
[1748110463743,111.39657549,177.6,177.57,7.2]
[1748110463949,0.03657549,177.6,177.57,7.2]
[1748110464246,0.03657549,177.6,177.58,5.09544425]
[1748110464742,0.03657549,177.6,177.59,5.6293]
[1748110465744,0.03657549,177.6,177.58,10.72494425]
[1748110466651,0.03657549,177.6,177.57,12.8298]
[1748110468749,0.03657549,177.6,177.58,5.6295]
[1748110470858,0.03657549,177.6,177.57,12.8299]
[1748110474661,0.03657549,177.6,177.58,5.09544425]
[1748110475555,0.03657549,177.6,177.57,7.2]
[1748110476062,5.66567549,177.6,177.57,7.2]
[1748110477058,0.03657549,177.6,177.57,7.2]
[1748110477562,5.66557549,177.6,177.57,7.2]
[1748110478364,5.6293,177.59,177.57,7.2]
[1748110480958,5.6296,177.58,177.57,7.2]
[1748110481163,0.03657549,177.6,177.57,7.2]
[1748110481469,5.6295,177.59,177.57,7.2]
[1748110484863,5.6296,177.58,177.57,7.2]
[1748110485164,0.03657549,177.6,177.57,7.2]
[1748110485860,5.66577549,177.6,177.57,7.2]
[1748110486067,0.03657549,177.6,177.57,7.2]
[1748110486661,5.6296,177.58,177.57,7.2]
[1748110489374,5.6294,177.59,177.57,7.2]
[1748110492174,5.6296,177.58,177.57,7.2]
[1748110493477,116.6094,177.59,177.57,7.2]
[1748110495175,5.6296,177.58,177.57,7.2]
[1748110508189,5.6299,177.57,177.56,0.04114259]
[1748110516691,10.72524637,177.57,177.56,0.04114259]
[1748110531006,5.6299,177.57,177.56,0.04114259]
[1748110534399,10.7265525,177.57,177.56,0.04114259]
[1748110534802,5.0966525,177.57,177.42,7.31234279]
[1748110535002,5.10061799,177.51,177.44,3.9159]
[1748110535299,116.6121,177.5,177.45,5.6334]
[1748110535503,116.6121,177.5,177.44,3.9159]
[1748110535805,111.02194259,177.5,177.46,2.52404565]
[1748110536104,5.6324,177.49,177.46,2.52404565]
[1748110536404,111.02194259,177.5,177.46,2.52404565]
[1748110536703,116.65424259,177.5,177.46,2.52404565]
[1748110536905,111.02194259,177.5,177.46,2.52404565]
[1748110537400,5.6324,177.49,177.46,2.52404565]
[1748110537710,5.6324,177.49,177.46,0.03869688]
[1748110538610,5.6327,177.48,177.46,0.03869688]
[1748110538804,111.02194259,177.5,177.46,0.03869688]
[1748110539704,5.6324,177.49,177.46,0.03869688]
[1748110540202,116.67404259,177.5,177.46,5.67189688]
[1748110541208,5.6324,177.49,177.46,0.03869688]
[1748110541403,111.04194259,177.5,177.46,0.03869688]
[1748110541708,116.67424259,177.5,177.46,5.67199688]
[1748110541909,116.67424259,177.5,177.46,0.03869688]
[1748110542102,111.04194259,177.5,177.46,0.03869688]
[1748110542709,5.6326,177.49,177.46,0.03869688]
[1748110543507,5.6327,177.48,177.46,0.03869688]
[1748110543708,111.04194259,177.5,177.46,0.03869688]
[1748110543908,5.6326,177.49,177.46,0.03869688]
[1748110544508,116.67404259,177.5,177.46,5.67189688]
[1748110545111,5.6324,177.49,177.46,0.03869688]
[1748110546813,5.6328,177.48,177.46,0.03869688]
[1748110548213,5.6325,177.49,177.46,0.03869688]
[1748110549717,5.633,177.48,177.46,0.03869688]
[1748110549916,5.10061799,177.49,177.46,0.03869688]
[1748110551615,5.6329,177.48,177.46,0.03869688]
[1748110554418,5.6324,177.49,177.46,0.03869688]
[1748110554604,111.04194259,177.5,177.46,0.03869688]
[1748110554806,116.14256058,177.5,177.46,0.03869688]
[1748110555718,5.6326,177.49,177.46,0.03869688]
[1748110557421,5.6327,177.48,177.46,0.03869688]
[1748110557722,116.14256058,177.5,177.46,0.03869688]
[1748110557921,5.6324,177.49,177.46,5.67199688]
[1748110558118,116.14256058,177.5,177.46,5.67199688]
[1748110558622,121.77476058,177.5,177.46,5.67199688]
[1748110558821,116.14256058,177.5,177.46,5.67199688]
[1748110560618,5.6324,177.49,177.46,5.67199688]
[1748110560920,5.6324,177.49,177.46,0.03869688]
[1748110561623,116.14256058,177.5,177.46,0.03869688]
[1748110561821,5.6327,177.48,177.46,0.03869688]
[1748110563924,5.6325,177.49,177.46,0.03869688]
[1748110564129,116.14256058,177.5,177.46,0.03869688]
[1748110564525,0.04194259,177.5,177.46,0.03869688]
[1748110564925,0.04194259,177.5,177.46,3.89249688]
[1748110565836,0.04194259,177.5,177.47,2.2772573]
[1748110566329,0.04194259,177.5,177.49,5.6323]
[1748110568928,0.04194259,177.5,177.48,7.91153508]
[1748110569232,0.04194259,177.5,177.48,2.27893508]
[1748110569537,0.04194259,177.5,177.49,5.6324]
[1748110570838,0.04194259,177.5,177.48,5.6326]
[1748110573244,0.04194259,177.5,177.49,5.6324]
[1748110573637,0.04194259,177.5,177.47,1.9848]
[1748110574142,0.04194259,177.5,177.48,2.27998383]
[1748110574741,0.04194259,177.5,177.48,7.91258383]
[1748110575846,0.04194259,177.5,177.48,5.6326]
[1748110577044,0.04194259,177.5,177.49,5.6324]
[1748110581148,0.04194259,177.5,177.49,7.91402104]
[1748110587751,0.04194259,177.5,177.49,2.28162104]
[1748110587950,0.04194259,177.5,177.48,5.6326]
[1748110589052,5.67404259,177.5,177.47,5.633]
[1748110589455,0.04194259,177.5,177.46,1.99959688]
[1748110589751,0.04194259,177.5,177.49,5.6324]
[1748110590853,3.7348,177.59,177.56,5.6301]
[1748110591057,5.10061799,177.59,177.51,5.10061799]
[1748110591354,5.6297,177.58,177.51,5.10061799]
[1748110591655,5.6297,177.58,177.55,5.6304]
[1748110591845,5.6299,177.57,177.55,0.03780328]
[1748110592051,5.10061799,177.57,177.55,0.03780328]
[1748110592755,5.10061799,177.57,177.5,2.27865489]
[1748110592949,5.10061799,177.54,177.5,2.27865489]
[1748110593544,5.6314,177.53,177.49,5.6321]
[1748110593750,5.10061799,177.52,177.49,0.03763565]
[1748110594249,5.6319,177.51,177.49,0.03763565]
[1748110594754,10.73261799,177.5,177.49,0.03763565]
[1748110595657,5.632,177.5,177.49,0.03763565]
[1748110596150,110.96,177.51,177.49,0.03763565]
[1748110596151,116.5918,177.51,177.49,0.03763565]
[1748110596459,110.96,177.51,177.49,0.03763565]
[1748110597058,5.632,177.5,177.49,0.03763565]
[1748110598853,120.9053647,177.51,177.4,1.8683]
[1748110599052,7.9713647,177.47,177.39,2.48534877]
[1748110599352,110.96,177.46,177.41,5.6349]
[1748110599555,5.6338,177.45,177.41,5.6349]
[1748110599948,7.9713647,177.44,177.41,0.0415748]
[1748110600149,5.6346,177.42,177.41,0.0415748]
[1748110601662,116.5946,177.42,177.41,0.0415748]
[1748110603155,5.6354,177.4,177.36,5.6363]
[1748110603355,110.98,177.43,177.34,4.27240014]
[1748110603556,110.98,177.44,177.34,4.27240014]
[1748110603760,110.98,177.44,177.41,5.6348]
[1748110603960,110.98,177.44,177.35,2.27700014]
[1748110604161,0.04025228,177.41,177.38,0.04317326]
[1748110604363,0.04025228,177.41,177.4,5.6352]
[1748110604662,0.04025228,177.41,177.38,0.04317326]
[1748110605863,5.67525228,177.41,177.38,0.04317326]
[1748110606160,0.04025228,177.41,177.38,0.04317326]
[1748110606361,0.04025228,177.41,177.39,5.6353]
[1748110606559,0.04025228,177.41,177.38,0.04317326]
[1748110607762,0.04025228,177.41,177.39,5.6353]
[1748110608160,0.04025228,177.41,177.4,5.6352]
[1748110611669,0.04025228,177.41,177.39,5.6355]
[1748110612566,0.04025228,177.41,177.38,0.04317326]
[1748110613266,5.6355,177.39,177.38,0.04317326]
[1748110614670,111.04025228,177.41,177.33,5.6372]
[1748110614970,5.6364,177.37,177.33,5.6372]
[1748110615472,0.04082836,177.37,177.33,0.03553949]
[1748110616972,5.6366,177.36,177.33,0.03553949]
[1748110617162,0.04082836,177.37,177.33,0.03553949]
[1748110619667,5.67702836,177.37,177.33,5.67273949]
[1748110619867,5.67702836,177.37,177.33,0.03553949]
[1748110620570,5.67702836,177.37,177.34,5.6371]
[1748110620971,0.04082836,177.37,177.33,0.03553949]
[1748110621271,0.04082836,177.37,177.34,5.6368]
[1748110622066,0.04082836,177.37,177.36,5.6365]
[1748110625069,2.836e-05,177.37,177.36,5.6365]
[1748110631477,2.836e-05,177.37,177.33,0.03553949]
[1748110631880,2.836e-05,177.37,177.34,5.6371]
[1748110632667,2.836e-05,177.37,177.35,5.6368]
[1748110633581,2.836e-05,177.37,177.34,5.637]
[1748110634484,2.836e-05,177.37,177.35,5.6367]
[1748110635381,2.836e-05,177.37,177.36,5.6365]
[1748110639785,111.6,177.46,177.36,5.64]
[1748110639987,111.6,177.46,177.37,111.6]
[1748110640182,111.6,177.46,177.43,5.6342]
[1748110640688,111.64099606,177.46,177.43,5.67517565]
[1748110644396,117.27429606,177.46,177.43,5.67517565]
[1748110644696,111.64099606,177.46,177.44,5.6339]
[1748110644897,111.64099606,177.46,177.43,0.04097565]
[1748110645298,0.04099606,177.46,177.43,0.04097565]
[1748110645596,0.04099606,177.46,177.44,5.6337]
[1748110647101,0.04099606,177.46,177.45,5.6336]
[1748110670710,9.606e-05,177.46,177.45,5.6336]
[1748110681117,9.606e-05,177.46,177.45,7.90669345]
[1748110682925,9.606e-05,177.46,177.45,2.27309345]
[1748110684220,9.606e-05,177.46,177.44,5.6339]
[1748110684723,9.606e-05,177.46,177.45,5.6336]
[1748110694730,9.606e-05,177.46,177.45,7.91558708]
[1748110697236,9.606e-05,177.46,177.45,119.13558708]
[1748110699438,111.22,177.55,177.54,5.6308]
[1748110699637,111.22,177.55,177.46,7.9713647]
[1748110699934,1.9787,177.56,177.46,7.9713647]
[1748110700336,0.03625707,177.53,177.49,0.03848662]
[1748110700935,0.03625707,177.53,177.52,5.6312]
[1748110701532,0.03625707,177.53,177.51,5.6316]
[1748110703028,0.03625707,177.53,177.52,5.6314]
[1748110705242,0.03625707,177.53,177.49,0.03848662]
[1748110705840,5.6318,177.51,177.49,0.03848662]
[1748110706241,5.6321,177.5,177.49,0.03848662]
[1748110707141,5.6318,177.51,177.49,0.03848662]
[1748110708036,5.6321,177.5,177.49,0.03848662]
[1748110708235,1.89555707,177.53,177.49,0.03848662]
[1748110709044,5.6319,177.51,177.49,0.03848662]
[1748110709246,1.89555707,177.53,177.49,0.03848662]
[1748110710239,5.632,177.51,177.49,0.03848662]
[1748110710640,1.89555707,177.53,177.49,0.03848662]
[1748110710944,5.632,177.51,177.49,0.03848662]
[1748110712746,5.6315,177.52,177.49,0.03848662]
[1748110713344,1.89555707,177.53,177.49,0.03848662]
[1748110714043,7.52685707,177.53,177.5,5.632]
[1748110714246,7.52685707,177.53,177.49,0.03848662]
[1748110714547,7.52685707,177.53,177.49,5.67058662]
[1748110716046,0.03625707,177.53,177.49,0.03848662]
[1748110716551,5.66765707,177.53,177.49,5.67078662]
[1748110719355,5.66765707,177.53,177.5,5.632]
[1748110719846,5.6321,177.5,177.49,0.03848662]
[1748110720052,111.3,177.5,177.43,2.28800876]
[1748110720443,119.2713647,177.5,177.43,7.92220876]
[1748110720845,119.2713647,177.5,177.45,5.6335]
[1748110721048,0.0379058,177.49,177.46,0.04164532]
[1748110721546,0.0379058,177.49,177.46,5.67484532]
[1748110725353,0.0379058,177.49,177.47,5.6329]
[1748110727353,0.0379058,177.49,177.46,0.04164532]
[1748110728453,0.0379058,177.49,177.46,5.67484532]
[1748110729054,5.6703058,177.49,177.46,0.04164532]
[1748110729251,0.0379058,177.49,177.46,0.04164532]
[1748110729651,5.633,177.47,177.46,0.04164532]
[1748110730553,5.6328,177.48,177.46,0.04164532]
[1748110736459,5.633,177.47,177.46,0.04164532]
[1748110739663,5.6327,177.48,177.46,0.04164532]
[1748110739963,0.0379058,177.49,177.46,0.04164532]
[1748110740964,5.6703058,177.49,177.46,0.04164532]
[1748110742665,5.6327,177.48,177.46,0.04164532]
[1748110743562,5.633,177.47,177.46,0.04164532]
[1748110744364,5.6328,177.48,177.46,0.04164532]
[1748110744565,0.0379058,177.49,177.46,0.04164532]
[1748110745768,5.633,177.47,177.46,0.04164532]
[1748110749667,10.73619148,177.47,177.46,0.04164532]
[1748110750965,5.10319148,177.47,177.46,0.04164532]
[1748110751668,5.6328,177.48,177.46,0.04164532]
[1748110756571,5.633,177.47,177.46,0.04164532]
[1748110756772,5.14109728,177.49,177.46,0.04164532]
[1748110757674,5.6328,177.48,177.46,0.04164532]
[1748110767983,10.77359728,177.49,177.46,5.67484532]
[1748110769484,10.77359728,177.49,177.46,0.04164532]
[1748110770884,10.77359728,177.49,177.46,5.67494532]
[1748110772287,10.77359728,177.49,177.46,0.04164532]
[1748110772988,10.77359728,177.49,177.46,5.67494532]
[1748110773289,10.77239074,177.49,177.46,5.67494532]
[1748110773690,0.0379058,177.49,177.47,5.6328]
[1748110779097,0.0379058,177.49,177.46,5.67484532]
[1748110780794,0.0379058,177.49,177.48,5.6327]
[1748110793206,0.0379058,177.49,177.46,0.04164532]
[1748110793407,5.10095345,177.48,177.46,0.04164532]
[1748110794713,5.10095345,177.48,177.46,5.67484532]
[1748110796709,0.0379058,177.49,177.47,5.633]
[1748110796904,5.13885925,177.49,177.46,0.04164532]
[1748110797208,5.13885925,177.49,177.47,5.6327]
[1748110800810,5.13885925,177.49,177.48,5.6327]
[1748110801714,5.13885925,177.49,177.47,5.6329]
[1748110801904,0.0379058,177.49,177.47,5.6329]
[1748110802106,5.13885925,177.49,177.46,0.04164532]
[1748110802414,5.13885925,177.49,177.47,5.6328]
[1748110803708,5.13885925,177.49,177.48,5.6327]
[1748110804612,0.0379058,177.49,177.48,5.6327]
[1748110806119,5.10095345,177.54,177.47,5.10095345]
[1748110807015,0.03997586,177.52,177.47,5.10095345]
[1748110807312,0.03997586,177.52,177.48,2.23628644]
[1748110807722,0.03997586,177.52,177.51,5.6317]
[1748110811112,7.586e-05,177.52,177.51,10.73265345]
[1748110811313,7.586e-05,177.52,177.51,20.23495345]
[1748110811524,7.586e-05,177.52,177.51,14.59495345]
[1748110812514,7.586e-05,177.52,177.51,16.82635995]
[1748110817622,7.586e-05,177.52,177.51,14.59495345]
[1748110837953,7.586e-05,177.52,177.51,5.6317]
[1748110838252,7.586e-05,177.52,177.51,10.73265345]
[1748110845458,7.586e-05,177.52,177.51,12.96405995]
[1748110848660,7.586e-05,177.52,177.51,123.90405995]
[1748110849964,7.586e-05,177.52,177.51,127.90405995]
[1748110850159,1.9804,177.62,177.55,5.10095345]
[1748110850662,1.9804,177.62,177.6,5.6286]
[1748110851761,1.9804,177.62,177.61,5.6286]
[1748110851955,0.03633629,177.63,177.59,0.04201321]
[1748110853062,0.03633629,177.63,177.6,5.6286]
[1748110853263,0.03633629,177.63,177.59,0.04201321]
[1748110853759,5.10095345,177.62,177.59,0.04201321]
[1748110853959,5.10095345,177.62,177.55,110.94]
[1748110854362,5.6288,177.61,177.55,116.5703]
[1748110854963,5.6288,177.61,177.56,0.03871835]
[1748110855164,5.6292,177.6,177.56,0.03871835]
[1748110856763,5.6292,177.59,177.56,0.03871835]
[1748110857065,5.66686729,177.59,177.56,0.03871835]
[1748110858170,5.6296,177.58,177.56,0.03871835]
[1748110858359,0.03766729,177.59,177.56,0.03871835]
[1748110859468,5.6297,177.58,177.56,0.03871835]
[1748110860569,5.6298,177.57,177.56,0.03871835]
[1748110862470,2.0016,177.57,177.5,2.27427874]
[1748110862964,5.6307,177.55,177.51,5.6314]
[1748110863170,2.0016,177.57,177.5,5.10095345]
[1748110863471,0.03846513,177.55,177.52,5.67185068]
[1748110867172,0.03846513,177.55,177.52,0.04065068]
[1748110869780,5.66896513,177.55,177.52,0.04065068]
[1748110872982,5.6308,177.54,177.52,0.04065068]
[1748110873576,5.66906513,177.55,177.52,0.04065068]
[1748110877079,5.66906513,177.55,177.52,5.67195068]
[1748110879188,0.03846513,177.55,177.52,5.67195068]
[1748110880686,5.66896513,177.55,177.52,5.67195068]
[1748110883381,0.03846513,177.55,177.52,5.67195068]
[1748110884891,0.03846513,177.55,177.54,5.6308]
[1748110885796,0.03846513,177.55,177.54,10.72642391]
[1748110886701,6.513e-05,177.55,177.54,10.72642391]
[1748110887692,6.513e-05,177.55,177.54,7.85443241]
[1748110890000,6.513e-05,177.55,177.54,9.80043241]
[1748110909615,6.513e-05,177.55,177.54,14.89540812]
[1748110914727,6.513e-05,177.55,177.54,7.85443241]
[1748110914930,6.513e-05,177.55,177.54,12.94940812]
[1748110919827,1.8837,177.65,177.54,7.31860812]
[1748110920028,486.46,177.73,177.63,5.09497571]
[1748110920329,116.465,177.73,177.65,5.09497571]
[1748110920530,110.84,177.73,177.65,5.09497571]
[1748110920929,0.04081056,177.71,177.67,0.03781517]
[1748110921536,0.04081056,177.71,177.69,5.09497571]
[1748110921725,0.04081056,177.71,177.67,0.03781517]
[1748110926136,5.626,177.7,177.67,0.03781517]
[1748110926833,0.04081056,177.71,177.67,0.03781517]
[1748110927338,5.6263,177.68,177.67,0.03781517]
[1748110928032,5.6275,177.65,177.62,111.34]
[1748110929137,5.6666062,177.65,177.62,111.37586831]
[1748110929833,5.6276,177.64,177.62,111.37586831]
[1748110930141,0.0391062,177.65,177.62,111.37586831]
[1748110930335,5.6279,177.64,177.62,0.03586831]
[1748110930637,0.0391062,177.65,177.62,0.03586831]
[1748110931239,5.6279,177.63,177.62,0.03586831]
[1748110940145,111.3791062,177.65,177.57,2.24353564]
[1748110940146,5.6295,177.58,177.57,2.24353564]
[1748110940544,111.34,177.61,177.56,2.24353564]
[1748110940836,5.6298,177.57,177.56,2.24353564]
[1748110941941,5.6298,177.57,177.55,0.03981009]
[1748110942144,5.6301,177.56,177.55,0.03981009]
[1748110945844,0.03603664,177.58,177.55,0.03981009]
[1748110946441,5.66553664,177.58,177.55,0.03981009]
[1748110950152,5.66553664,177.58,177.55,5.67021009]
[1748110953151,0.03603664,177.58,177.56,5.63]
[1748110954252,0.03603664,177.58,177.55,5.67021009]
[1748110954951,5.66553664,177.58,177.55,5.67021009]
[1748110955155,0.03603664,177.58,177.55,5.67021009]
[1748110955751,0.03603664,177.58,177.56,5.6301]
[1748110956554,0.03603664,177.58,177.55,5.67021009]
[1748110957156,5.66563664,177.58,177.55,5.67021009]
[1748110957453,0.03603664,177.58,177.55,0.03981009]
[1748110958549,5.6301,177.57,177.55,0.03981009]
[1748110958951,5.6301,177.57,177.5,2.24509986]
[1748110958952,111.94,177.57,177.5,2.24509986]
[1748110959350,111.94,177.57,177.48,111.94]
[1748110959959,0.04099083,177.54,177.51,0.04329642]
[1748110960959,5.67199083,177.54,177.51,0.04329642]
[1748110963457,5.67199083,177.54,177.51,5.67499642]
[1748110964166,5.6311,177.53,177.51,0.04329642]
[1748110964559,0.04099083,177.54,177.51,0.04329642]
[1748110965258,0.04099083,177.54,177.52,5.6313]
[1748110966763,0.04099083,177.54,177.53,5.6311]
[1748110968264,0.04099083,177.54,177.52,5.6314]
[1748110970165,0.04099083,177.54,177.53,5.6311]
[1748110984682,0.04099083,177.54,177.53,7.88801194]
[1748110988083,9.083e-05,177.54,177.53,7.88801194]
[1748110988284,5.09770626,177.64,177.53,4.28281194]
[1748110988589,111.46,177.63,177.58,5.09770626]
[1748110988886,111.46,177.64,177.58,5.09770626]
[1748110989186,0.04291315,177.63,177.59,0.03601867]
[1748110989788,0.04291315,177.63,177.61,5.6285]
[1748110992083,0.04291315,177.63,177.62,5.6282]
[1748111003407,1.315e-05,177.63,177.62,5.6282]
[1748111006407,1.315e-05,177.63,177.62,7.6433]